fUSD/lending_fUSD_20250606
["ID","MTS","AMOUNT","RATE_DAILY","PERIOD"]
[364643090,1749175842927,-762.24,0.00030164,7]
[364643091,1749175842937,-483.61869178,0.00030164,7]
[364643092,1749175842946,-465.85447473,0.00030164,7]
[364643093,1749175842955,-485.15528932,0.00030164,7]
[364643094,1749175842965,-480.75627657,0.00030164,2]
[364643095,1749175842975,-620.56550188,0.00030164,7]
[364643096,1749175842984,-545.23912968,0.00030164,7]
[364643097,1749175842994,-480.0,0.00030164,7]
[364643098,1749175843003,-492.952179,0.00030164,7]
[364643099,1749175843013,-480.0,0.00030164,7]
[364643100,1749175843022,-475.62597457,0.00030164,7]
[364643101,1749175843032,-495.39431166,0.00030164,7]
[364643102,1749175843041,-494.72527346,0.00030164,7]
[364643103,1749175843051,-673.79,0.00030164,7]
[364643104,1749175843061,-730.88,0.00030164,7]
[364643105,1749175843070,-480.0,0.00030164,7]
[364643106,1749175843079,-480.0,0.00030164,7]
[364643107,1749175843089,-492.36073502,0.00030164,7]
[364643108,1749175843098,-151.0,0.00030164,7]
[364643109,1749175843108,-151.0,0.00030164,7]
[364643110,1749175843117,-250.0,0.00030164,7]
[364643111,1749175843127,-509.77603538,0.00030164,7]
[364643112,1749175843137,-480.0,0.00030164,7]
[364643113,1749175843146,-480.0,0.00030164,7]
[364643114,1749175843157,-480.0,0.00030164,7]
[364643115,1749175843166,-489.53454566,0.00030164,7]
[364643116,1749175843176,-480.0,0.00030164,7]
[364643117,1749175843185,-480.0,0.00030164,7]
[364643118,1749175843195,-495.32028555,0.00030164,7]
[364643119,1749175843204,-484.25389279,0.00030164,7]
[364643120,1749175843214,-480.0,0.00030164,7]
[364643121,1749175843223,-448.89377785,0.00030164,7]
[364643122,1749175843233,-480.0,0.00030164,7]
[364643123,1749175843243,-480.0,0.00030164,7]
[364643124,1749175843252,-480.0,0.00030164,7]
[364643125,1749175843262,-480.0,0.00030164,7]
[364643126,1749175843271,-495.83858988,0.00030164,7]
[364643127,1749175843281,-480.0,0.00030164,7]
[364643128,1749175843291,-498.22459929,0.00030164,7]
[364643129,1749175843300,-501.92709343,0.00030164,7]
[364643130,1749175843311,-483.99946189,0.00030164,7]
[364643131,1749175843321,-530.33,0.00030164,7]
[364643132,1749175843331,-2258.08626,0.00030164,7]
[364643133,1749175843340,-158.156702,0.00030164,7]
[364643134,1749175843350,-494.21545318,0.00030164,7]
[364643135,1749175843360,-486.41058017,0.00030164,7]
[364643136,1749175843369,-498.18121221,0.00030164,7]
[364643137,1749175843378,-518.6,0.00030164,7]
[364643138,1749175843390,-214.159275,0.00030164,7]
[364643139,1749175843401,-490.58235706,0.00030164,7]
[364643140,1749175843410,-158.156702,0.00030164,7]
[364643141,1749175843420,-2258.08626,0.00030164,7]
[364643142,1749175843429,-480.0,0.00030164,7]
[364643143,1749175843439,-303.27141357,0.00030164,7]
[364643144,1749175843449,-219.86001804,0.00030164,7]
[364643145,1749175843458,-480.0,0.00030164,7]
[364643146,1749175843467,-214.159275,0.00030164,7]
[364643147,1749175843477,-487.95900719,0.00030164,7]
[364643148,1749175843486,-480.0,0.00030164,7]
[364643149,1749175843496,-486.43758085,0.00030164,7]
[364643150,1749175843506,-456.48427398,0.00030164,7]
[364643151,1749175843515,-480.0,0.00030164,7]
[364643153,1749175843524,-480.0,0.00030164,7]
[364643154,1749175843534,-480.0,0.00030164,7]
[364643156,1749175843544,-480.0,0.00030164,7]
[364643158,1749175843553,-480.0,0.00030164,7]
[364643160,1749175843562,-502.21832714,0.00030164,7]
[364643162,1749175843572,-495.87428154,0.00030164,7]
[364643164,1749175843581,-491.99101096,0.00030164,7]
[364643166,1749175843590,-496.14,0.00030164,7]
[364643167,1749175843600,-480.0,0.00030164,7]
[364643168,1749175843610,-928.01,0.00030164,7]
[364643169,1749175843619,-466.11797011,0.00030164,7]
[364643170,1749175843628,-480.0,0.00030164,7]
[364643171,1749175843638,-480.0,0.00030164,7]
[364643172,1749175843648,-480.0,0.00030164,7]
[364643173,1749175843657,-480.0,0.00030164,7]
[364643174,1749175843667,-480.0,0.00030164,7]
[364643175,1749175843679,-480.0,0.00030164,7]
[364643176,1749175843692,-480.0,0.00030164,7]
[364643177,1749175843707,-480.0,0.00030164,7]
[364643178,1749175843719,-266.05293358,0.00030164,7]
[364643179,1749175843732,-441.42524501,0.00030164,7]
[364643180,1749175843746,-480.0,0.00030164,7]
[364643181,1749175843759,-480.0,0.00030164,7]
[364643182,1749175843773,-348.99824157,0.00030164,7]
[364643183,1749175843787,-480.0,0.00030164,7]
[364643184,1749175843801,-480.0,0.00030164,7]
[364643185,1749175843813,-500.07556787,0.00030164,7]
[364643186,1749175843825,-480.0,0.00030164,7]
[364643187,1749175843838,-480.0,0.00030164,7]
[364643188,1749175843851,-480.0,0.00030164,7]
[364643189,1749175843865,-480.0,0.00030164,7]
[364643190,1749175843878,-496.35132524,0.00030164,7]
[364643191,1749175843891,-480.0,0.00030164,7]
[364643192,1749175843906,-480.0,0.00030164,7]
[364643193,1749175843920,-480.0,0.00030164,7]
[364643194,1749175843934,-480.0,0.00030164,7]
[364643195,1749175843948,-480.0,0.00030164,7]
[364643196,1749175843961,-480.0,0.00030164,7]
[364643197,1749175843974,-480.0,0.00030164,7]
[364643198,1749175843988,-480.0,0.00030164,7]
[364643199,1749175844003,-499.23357579,0.00030164,7]
[364643200,1749175844015,-480.0,0.00030164,7]
[364643201,1749175844027,-495.45435143,0.00030164,7]
[364643202,1749175844039,-480.0,0.00030164,7]
[364643203,1749175844050,-492.39931651,0.00030164,7]
[364643204,1749175844061,-151.0,0.00030164,7]
[364643205,1749175844076,-480.0,0.00030164,7]
[364643206,1749175844089,-151.0,0.00030164,7]
[364643207,1749175844101,-480.0,0.00030164,7]
[364643208,1749175844112,-483.53092979,0.00030164,7]
[364643209,1749175844123,-489.95522101,0.00030164,7]
[364643210,1749175844138,-490.7865181,0.00030164,7]
[364643211,1749175844150,-494.51200056,0.00030164,7]
[364643212,1749175844162,-480.0,0.00030164,7]
[364643213,1749175844173,-480.0,0.00030164,7]
[364643214,1749175844186,-480.0,0.00030164,7]
[364643215,1749175844198,-151.0,0.00030164,7]
[364643216,1749175844210,-151.0,0.00030164,7]
[364643217,1749175844222,-484.47396071,0.00030164,7]
[364643218,1749175844234,-480.0,0.00030164,7]
[364643219,1749175844246,-918.73,0.00030164,7]
[364643220,1749175844257,-480.0,0.00030164,7]
[364643221,1749175844270,-480.0,0.00030164,7]
[364643222,1749175844281,-480.0,0.00030164,7]
[364643223,1749175844292,-473.99949769,0.00030164,7]
[364643224,1749175844304,-480.0,0.00030164,7]
[364643225,1749175844317,-480.0,0.00030164,7]
[364643226,1749175844330,-480.0,0.00030164,7]
[364643227,1749175844342,-480.0,0.00030164,7]
[364643228,1749175844356,-480.0,0.00030164,7]
[364643229,1749175844367,-510.35890728,0.00030164,7]
[364643230,1749175844383,-851.47,0.00030164,7]
[364643231,1749175844396,-485.54724894,0.00030164,7]
[364643232,1749175844409,-1300.39,0.00030164,7]
[364643233,1749175844421,-504.60064045,0.00030164,7]
[364643234,1749175844434,-480.0,0.00030164,7]
[364643235,1749175844446,-480.0,0.00030164,7]
[364643236,1749175844458,-480.0,0.00030164,7]
[364643237,1749175844470,-152.113808,0.00030164,7]
[364643238,1749175844483,-480.0,0.00030164,7]
[364643239,1749175844495,-1357.84726863,0.00030164,30]
[364643240,1749175844507,-560.01681825,0.00030164,7]
[364643241,1749175844519,-151.0,0.00030164,7]
[364643242,1749175844531,-151.0,0.00030164,7]
[364643243,1749175844543,-480.0,0.00030164,7]
[364643244,1749175844555,-178.33895385,0.00030164,7]
[364643245,1749175844567,-472.32858008,0.00030164,7]
[364643246,1749175844579,-480.0,0.00030164,7]
[364643247,1749175844590,-809.13,0.00030164,7]
[364643248,1749175844602,-486.7117137,0.00030164,7]
[364643249,1749175844613,-156.114395,0.00030164,7]
[364643250,1749175844625,-480.0,0.00030164,7]
[364643251,1749175844637,-480.0,0.00030164,7]
[364643252,1749175844650,-480.0,0.00030164,7]
[364643253,1749175844661,-490.68484751,0.00030164,7]
[364643254,1749175844673,-480.0,0.00030164,7]
[364643255,1749175844685,-575.84,0.00030164,7]
[364643256,1749175844697,-1478.98,0.00030164,7]
[364643257,1749175844709,-480.0,0.00030164,7]
[364643258,1749175844720,-494.55999341,0.00030164,7]
[364643259,1749175844731,-480.0,0.00030164,7]
[364643260,1749175844742,-449.89806166,0.00030164,7]
[364643261,1749175844755,-1339.16,0.00030164,7]
[364643262,1749175844766,-420.0,0.00030164,7]
[364643263,1749175844778,-151.0,0.00030164,7]
[364643264,1749175844789,-498.67864343,0.00030164,7]
[364643265,1749175844800,-1061.49,0.00030164,7]
[364643266,1749175844812,-757.49,0.00030164,7]
[364643267,1749175844823,-232.6460603,0.00030164,7]
[364643268,1749175844834,-495.7120733,0.00030164,7]
[364643269,1749175844846,-480.0,0.00030164,7]
[364643270,1749175844857,-153.09525,0.00030164,7]
[364643271,1749175844868,-480.0,0.00030164,7]
[364643272,1749175844880,-480.0,0.00030164,7]
[364643273,1749175844891,-807.34,0.00030164,7]
[364643274,1749175844903,-990.88,0.00030164,7]
[364643275,1749175844915,-336.86568805,0.00030164,7]
[364643276,1749175844926,-449.50438927,0.00030164,7]
[364643277,1749175844938,-491.28247141,0.00030164,7]
[364643278,1749175844948,-562.47,0.00030164,7]
[364643279,1749175844960,-480.0,0.00030164,7]
[364643280,1749175844971,-492.25807826,0.00030164,7]
[364643281,1749175844982,-151.0,0.00030164,7]
[364643282,1749175844994,-151.0,0.00030164,7]
[364643283,1749175845005,-480.0,0.00030164,7]
[364643284,1749175845017,-1814.19,0.00030164,7]
[364643285,1749175845029,-1464.92,0.00030164,7]
[364643286,1749175845040,-480.0,0.00030164,7]
[364643287,1749175845052,-483.21197246,0.00030164,7]
[364643288,1749175845063,-480.0,0.00030164,7]
[364643289,1749175845076,-489.29167731,0.00030164,7]
[364643290,1749175845089,-480.0,0.00030164,7]
[364643291,1749175845103,-509.38911047,0.00030164,7]
[364643292,1749175845115,-480.0,0.00030164,7]
[364643293,1749175845127,-480.0,0.00030164,7]
[364643294,1749175845139,-1213.39,0.00030164,7]
[364643295,1749175845151,-480.0,0.00030164,7]
[364643296,1749175845163,-480.0,0.00030164,7]
[364643297,1749175845175,-930.486682,0.00030164,7]
[364643298,1749175845187,-681.97,0.00030164,7]
[364643299,1749175845199,-930.486682,0.00030164,7]
[364643300,1749175845210,-151.0,0.00030164,7]
[364643301,1749175845222,-500.10509747,0.00030164,7]
[364643302,1749175845234,-884.81,0.00030164,7]
[364643303,1749175845245,-489.98501007,0.00030164,7]
[364643304,1749175845258,-930.486682,0.00030164,7]
[364643305,1749175845270,-930.486682,0.00030164,7]
[364643306,1749175845281,-834.05,0.00030164,7]
[364643307,1749175845292,-151.0,0.00030164,7]
[364643308,1749175845304,-480.0,0.00030164,7]
[364643309,1749175845318,-1000.0,0.00030164,7]
[364643310,1749175845329,-928.11,0.00030164,7]
[364643311,1749175845341,-480.0,0.00030164,7]
[364643312,1749175845352,-499.96858413,0.00030164,7]
[364643313,1749175845364,-151.0,0.00030164,7]
[364643314,1749175845376,-151.0,0.00030164,7]
[364643315,1749175845388,-480.0,0.00030164,7]
[364643316,1749175845401,-351.51689646,0.00030164,7]
[364643317,1749175845413,-861.34,0.00030164,7]
[364643318,1749175845425,-480.0,0.00030164,7]
[364643319,1749175845437,-159.217527,0.00030164,7]
[364643321,1749175845449,-426.90771548,0.00030164,7]
[364643323,1749175845462,-428.08939245,0.00030164,7]
[364643324,1749175845473,-489.00516933,0.00030164,7]
[364643325,1749175845485,-480.0,0.00030164,7]
[364643326,1749175845496,-827.55,0.00030164,7]
[364643327,1749175845507,-480.0,0.00030164,7]
[364643328,1749175845519,-480.0,0.00030164,7]
[364643329,1749175845530,-617.98,0.00030164,7]
[364643330,1749175845541,-1113.54,0.00030164,7]
[364643331,1749175845553,-440.14668367,0.00030164,7]
[364643332,1749175845564,-151.0,0.00030164,7]
[364643333,1749175845576,-480.0,0.00030164,7]
[364643334,1749175845587,-151.0,0.00030164,7]
[364643335,1749175845599,-480.0,0.00030164,7]
[364643336,1749175845613,-480.0,0.00030164,7]
[364643337,1749175845627,-1699.22,0.00030164,7]
[364643338,1749175845638,-480.0,0.00030164,7]
[364643339,1749175845651,-480.0,0.00030164,7]
[364643340,1749175845662,-1417.17,0.00030164,7]
[364643342,1749175845673,-207.2535787,0.00030164,7]
[364643344,1749175845684,-345.94057727,0.00030164,7]
[364643345,1749175845695,-473.83522985,0.00030164,7]
[364643346,1749175845707,-480.0,0.00030164,7]
[364643347,1749175845718,-502.92530979,0.00030164,7]
[364643348,1749175845728,-559.14076901,0.00030164,7]
[364643349,1749175845739,-491.51365123,0.00030164,7]
[364643350,1749175845752,-480.0,0.00030164,7]
[364643351,1749175845764,-490.81977368,0.00030164,7]
[364643352,1749175845776,-480.0,0.00030164,7]
[364643353,1749175845787,-219.9319816,0.00030164,7]
[364643354,1749175845798,-480.0,0.00030164,7]
[364643355,1749175845809,-299.223605,0.00030164,7]
[364643356,1749175845820,-1407.824945,0.00030164,7]
[364643357,1749175845831,-1407.824945,0.00030164,7]
[364643358,1749175845843,-479.58928865,0.00030164,7]
[364643359,1749175845855,-480.0,0.00030164,7]
[364643360,1749175845867,-541.27,0.00030164,7]
[364643361,1749175845879,-480.0,0.00030164,7]
[364643362,1749175845890,-480.0,0.00030164,7]
[364643363,1749175845902,-1407.824945,0.00030164,7]
[364643364,1749175845913,-481.31054065,0.00030164,7]
[364643365,1749175845925,-1407.824945,0.00030164,7]
[364643366,1749175845938,-480.0,0.00030164,7]
[364643367,1749175845951,-480.0,0.00030164,7]
[364643368,1749175845963,-728.63,0.00030164,7]
[364643369,1749175845975,-480.0,0.00030164,7]
[364643370,1749175845986,-489.5153713,0.00030164,7]
[364643371,1749175845998,-1305.63,0.00030164,7]
[364643372,1749175846010,-1279.06,0.00030164,7]
[364643373,1749175846022,-480.0,0.00030164,7]
[364643374,1749175846034,-925.76,0.00030164,7]
[364643375,1749175846045,-491.41990525,0.00030164,7]
[364643376,1749175846058,-480.0,0.00030164,7]
[364643377,1749175846070,-489.83533206,0.00030164,7]
[364643378,1749175846082,-480.0,0.00030164,7]
[364643379,1749175846093,-480.0,0.00030164,7]
[364643380,1749175846104,-1308.73,0.00030164,7]
[364643381,1749175846114,-571.41595372,0.00030164,7]
[364643382,1749175846124,-202.13031356,0.00030164,7]
[364643383,1749175846134,-480.0,0.00030164,7]
[364643384,1749175846145,-487.89,0.00030164,7]
[364643385,1749175846155,-480.0,0.00030164,7]
[364643386,1749175846164,-480.0,0.00030164,7]
[364643387,1749175846173,-480.0,0.00030164,7]
[364643388,1749175846182,-480.0,0.00030164,7]
[364643389,1749175846192,-480.0,0.00030164,7]
[364643390,1749175846201,-480.0,0.00030164,7]
[364643391,1749175846210,-515.33,0.00030164,7]
[364643393,1749175846593,-480.0,0.00030164,7]
[364643394,1749175846620,-487.29441229,0.00030164,7]
[364643395,1749175846631,-480.0,0.00030164,7]
[364643396,1749175846640,-1838.57,0.00030164,7]
[364643397,1749175846650,-1098.7,0.00030164,7]
[364643398,1749175846659,-480.0,0.00030164,7]
[364643399,1749175846668,-152.054154,0.00030164,7]
[364643400,1749175846677,-480.0,0.00030164,7]
[364643401,1749175846687,-676.52,0.00030164,7]
[364643402,1749175846696,-152.054154,0.00030164,7]
[364643403,1749175846705,-430.58685559,0.00030164,7]
[364643404,1749175846714,-152.054154,0.00030164,7]
[364643405,1749175846723,-152.054154,0.00030164,7]
[364643406,1749175846732,-342.0337611,0.00030164,7]
[364643407,1749175846741,-1093.33,0.00030164,7]
[364643408,1749175846750,-480.0,0.00030164,7]
[364643409,1749175846760,-480.0,0.00030164,7]
[364643410,1749175846770,-151.0,0.00030164,7]
[364643411,1749175846779,-492.7162033,0.00030164,7]
[364643412,1749175846788,-151.0,0.00030164,7]
[364643413,1749175846798,-491.22652941,0.00030164,7]
[364643414,1749175846807,-480.0,0.00030164,7]
[364643415,1749175846817,-494.47936792,0.00030164,7]
[364643416,1749175846826,-480.0,0.00030164,7]
[364643417,1749175846835,-480.0,0.00030164,7]
[364643418,1749175846845,-492.43,0.00030164,7]
[364643419,1749175846854,-151.0,0.00030164,7]
[364643420,1749175846863,-495.22871544,0.00030164,7]
[364643421,1749175846873,-1137.8,0.00030164,7]
[364643422,1749175846882,-168.77765,0.00030164,7]
[364643424,1749175846891,-151.0,0.00030164,7]
[364643425,1749175846900,-480.0,0.00030164,7]
[364643426,1749175846910,-853.16,0.00030164,7]
[364643427,1749175846920,-1006.63,0.00030164,7]
[364643428,1749175846929,-480.0,0.00030164,7]
[364643429,1749175846939,-355.964584,0.00030164,7]
[364643430,1749175846949,-1253.64,0.00030164,7]
[364643431,1749175846958,-355.964584,0.00030164,7]
[364643432,1749175846967,-773.04,0.00030164,7]
[364643433,1749175846979,-355.964584,0.00030164,7]
[364643434,1749175846988,-355.964584,0.00030164,7]
[364643435,1749175846998,-480.0,0.00030164,7]
[364643436,1749175847007,-480.0,0.00030164,7]
[364643437,1749175847017,-480.0,0.00030164,7]
[364643438,1749175847027,-480.0,0.00030164,7]
[364643439,1749175847037,-2168.94,0.00030164,7]
[364643440,1749175847047,-991.74,0.00030164,7]
[364643441,1749175847056,-482.67072254,0.00030164,7]
[364643442,1749175847065,-480.0,0.00030164,7]
[364643443,1749175847075,-480.0,0.00030164,7]
[364643444,1749175847084,-1199.75,0.00030164,7]
[364643445,1749175847093,-480.0,0.00030164,7]
[364643446,1749175847103,-500.0,0.00030164,7]
[364643447,1749175847112,-150.0,0.00030164,7]
[364643448,1749175847122,-503.89715979,0.00030164,7]
[364643449,1749175847131,-480.0,0.00030164,7]
[364643450,1749175847141,-757.47,0.00030164,7]
[364643451,1749175847151,-480.0,0.00030164,7]
[364643452,1749175847160,-151.0,0.00030164,7]
[364643453,1749175847169,-495.92740712,0.00030164,7]
[364643454,1749175847179,-480.0,0.00030164,7]
[364643455,1749175847189,-151.0,0.00030164,7]
[364643456,1749175847198,-795.92,0.00030164,7]
[364643457,1749175847209,-480.0,0.00030164,7]
[364643458,1749175847219,-490.32581632,0.00030164,7]
[364643459,1749175847228,-1698.32,0.00030164,7]
[364643460,1749175847238,-480.0,0.00030164,7]
[364643461,1749175847257,-502.34256146,0.00030164,7]
[364643462,1749175847269,-480.0,0.00030164,7]
[364643463,1749175847279,-480.0,0.00030164,7]
[364643464,1749175847289,-1047.23,0.00030164,7]
[364643465,1749175847299,-265.127388,0.00030164,7]
[364643466,1749175847310,-1352.82,0.00030164,7]
[364643467,1749175847323,-689.41,0.00030164,7]
[364643468,1749175847333,-480.0,0.00030164,7]
[364643469,1749175847343,-265.127388,0.00030164,7]
[364643470,1749175847352,-480.0,0.00030164,7]
[364643471,1749175847363,-480.0,0.00030164,7]
[364643472,1749175847372,-495.76195994,0.00030164,7]
[364643473,1749175847383,-194.00167207,0.00030164,7]
[364643474,1749175847394,-480.0,0.00030164,7]
[364643475,1749175847404,-640.55,0.00030164,7]
[364643476,1749175847414,-480.0,0.00030164,7]
[364643477,1749175847424,-1973.93,0.00030164,7]
[364643478,1749175847435,-3295.31,0.00030164,7]
[364643479,1749175847445,-723.47,0.00030164,7]
[364643480,1749175847454,-751.41,0.00030164,30]
[364643481,1749175847465,-480.0,0.00030164,7]
[364643482,1749175847474,-480.0,0.00030164,7]
[364643483,1749175847485,-489.59481126,0.00030164,7]
[364643484,1749175847495,-922.95,0.00030164,7]
[364643485,1749175847505,-743.37,0.00030164,7]
[364643486,1749175847515,-151.0,0.00030164,7]
[364643487,1749175847524,-774.42,0.00030164,7]
[364643488,1749175847534,-151.578024,0.00030164,7]
[364643489,1749175847544,-151.0,0.00030164,7]
[364643490,1749175847554,-151.0,0.00030164,7]
[364643491,1749175847564,-151.0,0.00030164,7]
[364643492,1749175847574,-1674.47,0.00030164,7]
[364643493,1749175847583,-480.0,0.00030164,7]
[364643494,1749175847592,-480.0,0.00030164,7]
[364643495,1749175847602,-3511.61,0.00030164,7]
[364643496,1749175847612,-2038.6,0.00030164,7]
[364643497,1749175847622,-1763.71,0.00030164,7]
[364643498,1749175847632,-480.0,0.00030164,7]
[364643499,1749175847641,-480.0,0.00030164,7]
[364643500,1749175847651,-2112.93,0.00030164,7]
[364643501,1749175847661,-480.0,0.00030164,7]
[364643502,1749175847671,-480.0,0.00030164,7]
[364643503,1749175847681,-531.73,0.00030164,7]
[364643504,1749175847691,-3212.33,0.00030164,7]
[364643505,1749175847700,-480.0,0.00030164,7]
[364643506,1749175847710,-5705.16,0.00030164,7]
[364643507,1749175847719,-480.0,0.00030164,7]
[364643508,1749175847729,-426.71356169,0.00030164,7]
[364643509,1749175847740,-1586.61,0.00030164,7]
[364643510,1749175847749,-480.0,0.00030164,7]
[364643511,1749175847759,-546.05,0.00030164,7]
[364643512,1749175847769,-480.0,0.00030164,7]
[364643513,1749175847779,-999.89,0.00030164,7]
[364643514,1749175847790,-500.0,0.00030164,7]
[364643515,1749175847799,-480.0,0.00030164,7]
[364643516,1749175847809,-1409.17,0.00030164,7]
[364643517,1749175847819,-500.0,0.00030164,7]
[364643518,1749175847829,-480.0,0.00030164,7]
[364643519,1749175847839,-1607.550816,0.00030164,7]
[364643520,1749175847848,-472.22186935,0.00030164,7]
[364643521,1749175847858,-944.17,0.00030164,7]
[364643522,1749175847868,-486.88740773,0.00030164,7]
[364643523,1749175847877,-500.0,0.00030164,7]
[364643524,1749175847887,-548.14,0.00030164,7]
[364643525,1749175847897,-500.0,0.00030164,7]
[364643526,1749175847907,-490.98601493,0.00030164,7]
[364643527,1749175847916,-500.0,0.00030164,7]
[364643528,1749175847926,-1169.46,0.00030164,7]
[364643529,1749175847936,-1545.04,0.00030164,7]
[364643530,1749175847946,-480.0,0.00030164,7]
[364643531,1749175847956,-611.58523221,0.00030164,7]
[364643532,1749175847966,-480.0,0.00030164,7]
[364643533,1749175847975,-497.46706187,0.00030164,7]
[364643534,1749175847985,-2252.83,0.00030164,7]
[364643535,1749175847994,-1088.54,0.00030164,7]
[364643536,1749175848004,-506.32,0.00030164,7]
[364643537,1749175848014,-480.0,0.00030164,7]
[364643538,1749175848024,-480.0,0.00030164,7]
[364643539,1749175848034,-5713.735496,0.00030164,7]
[364643540,1749175848043,-1257.84,0.00030164,7]
[364643541,1749175848053,-5713.735496,0.00030164,7]
[364643542,1749175848063,-151.0,0.00030164,7]
[364643543,1749175848074,-151.0,0.00030164,7]
[364643544,1749175848084,-500.0,0.00030164,7]
[364643545,1749175848094,-155.683689,0.00030164,7]
[364643546,1749175848104,-473.1908608,0.00030164,7]
[364643547,1749175848113,-5713.735496,0.00030164,7]
[364643548,1749175848123,-5713.735496,0.00030164,7]
[364643549,1749175848133,-654.41,0.00030164,7]
[364643550,1749175848143,-9626.71,0.00030164,7]
[364643551,1749175848152,-654.41,0.00030164,7]
[364643552,1749175848162,-3958.35,0.00030164,7]
[364643553,1749175848172,-654.41,0.00030164,7]
[364643554,1749175848182,-484.17425303,0.00030164,7]
[364643555,1749175848192,-480.0,0.00030164,7]
[364643556,1749175848202,-150.0,0.00030164,7]
[364643557,1749175848212,-654.41,0.00030164,7]
[364643558,1749175848221,-654.41,0.00030164,7]
[364643559,1749175848231,-654.41,0.00030164,7]
[364643560,1749175848241,-1816.64,0.00030164,7]
[364643561,1749175848250,-654.41,0.00030164,7]
[364643562,1749175848260,-480.0,0.00030164,7]
[364643563,1749175848269,-654.41,0.00030164,7]
[364643564,1749175848281,-654.41,0.00030164,7]
[364643565,1749175848291,-528.0,0.00030164,7]
[364643566,1749175848300,-654.41,0.00030164,7]
[364643567,1749175848311,-654.41,0.00030164,7]
[364643568,1749175848322,-480.0,0.00030164,7]
[364643569,1749175848331,-507.11,0.00030164,7]
[364643570,1749175848341,-185.9957717,0.00030164,7]
[364643571,1749175848351,-484.28248514,0.00030164,7]
[364643572,1749175848361,-480.0,0.00030164,7]
[364643573,1749175848371,-3727.41,0.00030164,7]
[364643574,1749175848380,-1476.36,0.00030164,7]
[364643575,1749175848390,-1701.04,0.00030164,7]
[364643576,1749175848399,-4818.11,0.00030164,7]
[364643577,1749175848410,-1032.66,0.00030164,7]
[364643578,1749175848419,-500.0,0.00030164,7]
[364643579,1749175848429,-480.0,0.00030164,7]
[364643580,1749175848439,-480.0,0.00030164,7]
[364643581,1749175848448,-1925.79,0.00030164,7]
[364643582,1749175848459,-153.223815,0.00030164,7]
[364643583,1749175848468,-480.0,0.00030164,7]
[364643584,1749175848477,-2059.38,0.00030164,7]
[364643585,1749175848487,-500.0,0.00030164,7]
[364643586,1749175848497,-821.73,0.00030164,7]
[364643587,1749175848507,-486.49874473,0.00030164,7]
[364643588,1749175848517,-150.4800488,0.00030164,7]
[364643589,1749175848527,-1612.92,0.00030164,7]
[364643590,1749175848537,-150.0,0.00030164,7]
[364643591,1749175848547,-1230.13,0.00030164,7]
[364643592,1749175848557,-1426.93,0.00030164,7]
[364643593,1749175848567,-480.0,0.00030164,7]
[364643594,1749175848576,-480.0,0.00030164,7]
[364643595,1749175848587,-500.0,0.00030164,7]
[364643596,1749175848597,-480.0,0.00030164,7]
[364643597,1749175848607,-500.0,0.00030164,7]
[364643598,1749175848618,-480.0,0.00030164,7]
[364643599,1749175848628,-1459.63,0.00030164,7]
[364643600,1749175848640,-1784.327452,0.00030164,7]
[364643601,1749175848652,-462.7885579,0.00030164,7]
[364643602,1749175848662,-1000.0,0.00030164,7]